{"text_format":"1","workbook":"xlsx","n_sheets":1,"sheets":["ورقة1"],"not_rendered":{"charts":0,"images":0,"macros":1,"external_links":0,"defined_names":0,"comments":0,"pivot_tables":0},"unopened":[],"bounds":{"document_bytes":16777216,"sheet_cells":100000,"rows_first":2000,"rows_last":500,"rows_between":2000,"halvings":0,"cell_chars":16384,"cell_head_chars":4096},"cells_cut":0,"cells_raw":0,"read":"whole","date_system":"1900"}

{"sheet":"ورقة1","index":0,"n_rows":20,"n_cols":11,"rows_kept":20,"cut":false,"hidden":false,"merged":[[0,6,4,6],[9,10,18,11]]}
[null,null,null,null,null,null,"ا رجو اكمال هذا الكود"]
[null,null,null,"غير محدودة الاسطر"]
[]
[null,1,1,2]
[null,2,2,4]
[null,3,3,6]
[null,4,4,8,null,null,{"$f":"SUM(B4,C4)","v":2},null,null,{"$f":"SUM(B4,C4)","v":2}]
[null,5,5,10,null,null,4,null,null,4]
[null,6,6,12,null,null,6,null,null,6]
[null,7,7,14,null,null,8,null,null,8,"هنا الكود يعمل تمام"]
[null,8,8,16,null,null,10,null,null,10]
[null,9,9,18,null,null,12,null,null,12]
[null,10,10,20,null,null,14,null,null,14]
[null,11,11,22,null,null,16,null,null,16]
[null,12,12,24,null,null,18,null,null,18]
[null,13,13,26,null,null,20,null,null,20]
[null,null,null,null,null,null,22,null,null,22]
[null,null,null,null,null,null,24,null,null,24]
[null,null,null,null,null,null,26,null,null,26]
[null,null,null,null,null,null,0,null,null,0]